bitfinex/quotes_SOLUSD_20240603
["timestamp","ask_amount","ask_price","bid_price","bid_amount"]
[1717383698704,8.5286,164.06,163.99,51.092]
[1717383698906,0.17,164.05,163.99,45.0]
[1717383699134,2.4254,164.05,163.99,45.0]
[1717383699334,16.1412,164.02,163.99,45.0]
[1717383699523,6.4705,164.01,163.99,45.0]
[1717383699840,22.6117,164.01,163.95,6.092]
[1717383700737,6.1787,164.0,163.97,2.2564]
[1717383700932,16.1412,164.01,163.97,2.2564]
[1717383701109,6.1787,163.99,163.96,2.2566]
[1717383701808,6.1787,163.99,163.97,2.2564]
[1717383702008,6.1787,163.98,163.97,2.2564]
[1717383702537,15.2905,164.01,163.97,2.2564]
[1717383702838,6.1787,164.0,163.98,2.2563]
[1717383703436,6.1787,164.0,163.97,2.2564]
[1717383703637,6.1787,164.0,163.98,2.2563]
[1717383706134,6.1787,164.0,163.97,2.2564]
[1717383706338,6.1787,163.99,163.97,2.2564]
[1717383708434,6.2313,164.01,163.94,60.0]
[1717383708641,6.2313,164.01,163.99,2.2562]
[1717383708841,6.2313,164.01,164.0,2.256]
[1717383709017,6.2313,164.03,163.95,45.0]
[1717383709338,6.2313,164.03,163.98,2.2563]
[1717383709653,24.9502,164.03,163.97,2.2564]
[1717383710313,6.2313,164.01,163.97,2.2564]
[1717383710520,6.2313,164.0,163.97,2.2564]
[1717383710819,22.6945,164.0,163.97,2.2564]
[1717383711040,6.2313,163.99,163.96,2.2566]
[1717383711722,16.4632,164.0,163.93,66.9095238]
[1717383711723,21.799,163.98,163.93,0.8175238]
[1717383711929,21.799,163.98,163.95,2.2566]
[1717383712141,6.0678,163.98,163.95,2.2566]
[1717383712728,6.0678,163.98,163.96,2.2566]
[1717383712939,17.987,164.02,163.96,2.2566]
[1717383713120,6.0678,164.0,163.96,2.2566]
[1717383713655,8.3239,164.0,163.94,2.2568]
[1717383713854,8.3239,164.0,163.93,0.8175238]
[1717383714025,6.0678,164.0,163.95,2.2567]
[1717383714345,6.0678,164.0,163.96,2.2566]
[1717383715124,6.0678,164.0,163.97,2.2564]
[1717383715331,20.2968,164.07,163.95,60.0]
[1717383715332,17.9868,164.04,163.95,60.0]
[1717383715640,17.9868,164.04,163.98,2.2562]
[1717383716633,6.7797,164.03,163.98,2.2562]
[1717383717041,6.7797,164.03,163.99,2.2562]
[1717383717228,6.6097,164.03,163.99,2.2562]
[1717383717935,6.6097,164.03,163.98,2.2563]
[1717383718625,6.6097,164.03,163.99,2.2562]
[1717383719132,6.1911,164.02,163.98,2.2563]
[1717383719634,6.1911,164.01,163.98,2.2563]
[1717383720033,8.4468,164.03,163.98,2.2563]
[1717383720224,6.1911,164.02,163.97,2.2564]
[1717383721267,6.1911,164.02,163.98,2.2563]
[1717383721425,2.2555,164.04,163.96,45.0]
[1717383721625,0.17,164.03,163.98,2.2563]
[1717383721822,2.4254,164.05,163.99,2.2562]
[1717383722050,2.4254,164.05,163.99,2.2561]
[1717383722246,6.268,164.04,164.0,2.256]
[1717383723058,6.0705,164.05,163.96,45.0]
[1717383723348,2.4255,164.04,163.98,2.2562]
[1717383723526,2.4255,164.04,163.99,2.2562]
[1717383723728,8.3259,164.05,164.0,2.256]
[1717383723948,2.2551,164.07,164.02,2.2557]
[1717383724134,8.2795,164.07,164.01,2.2559]
[1717383724634,8.2796,164.07,163.96,111.092]
[1717383724834,8.2796,164.07,164.01,2.2559]
[1717383725029,6.3168,164.06,164.01,2.2559]
[1717383725463,8.572,164.06,164.01,2.2559]
[1717383725636,6.1468,164.05,163.97,20.0]
[1717383725958,8.4022,164.05,163.98,45.0]
[1717383726145,0.17,164.04,163.98,45.0]
[1717383726658,2.4255,164.04,163.98,45.0]
[1717383727528,2.4255,164.04,163.94,75.24461486]
[1717383727529,6.7672,164.04,163.94,6.092]
[1717383727756,0.17,164.03,163.98,2.2563]
[1717383727960,6.5972,164.01,163.98,2.2563]
[1717383728549,6.5972,164.01,163.99,2.2562]
[1717383729164,6.5972,164.01,163.98,2.2563]
[1717383730153,6.5972,164.01,163.99,2.2562]
[1717383730352,6.5493,164.03,163.99,2.2561]
[1717383730765,15.3635,164.03,163.99,2.2561]
[1717383730950,6.3653,164.02,163.99,2.2561]
[1717383732045,6.7962,164.04,164.0,2.256]
[1717383732756,6.2718,164.03,163.99,2.2561]
[1717383732974,6.2853,164.02,163.99,2.2561]
[1717383733781,25.3338,164.04,163.99,2.2561]
[1717383734152,23.0783,164.04,163.99,2.2561]
[1717383734359,6.4553,164.04,163.99,2.2561]
[1717383734769,6.4553,164.04,164.0,2.256]
[1717383734967,6.4553,164.04,163.99,2.2561]
[1717383735170,8.7108,164.04,163.99,2.2561]
[1717383735852,6.3453,164.03,163.99,2.2561]
[1717383736171,6.3453,164.03,163.98,2.2563]
[1717383738561,8.601,164.03,163.98,2.2563]
[1717383738749,6.3453,164.03,163.99,2.2562]
[1717383738955,6.3453,164.03,163.98,2.2563]
[1717383739177,0.17,164.02,163.98,2.2563]
[1717383739479,0.17,164.02,163.97,45.0]
[1717383739680,0.17,164.02,163.97,47.2563]
[1717383739850,4.46,164.02,163.97,47.2563]
[1717383740053,4.46,164.02,163.98,2.2563]
[1717383740877,4.46,164.02,163.99,2.2562]
[1717383741281,4.46,164.02,163.98,2.2563]
[1717383741981,4.29,164.01,163.97,47.2564]
[1717383742864,11.013,164.0,163.95,9.15330493]
[1717383743072,6.5462,163.99,163.94,11.41124244]
[1717383743287,4.29,163.99,163.94,11.41124244]
[1717383743568,4.29,163.99,163.95,2.2567]
[1717383744355,4.29,163.99,163.95,47.2567]
[1717383744886,0.34,163.98,163.95,2.2567]
[1717383746263,0.34,163.98,163.94,11.41124244]
[1717383746661,6.553,163.99,163.95,2.2567]
[1717383746869,10.843,163.99,163.95,47.2567]
[1717383747075,4.46,164.0,163.95,47.2567]
[1717383747465,4.29,164.0,163.95,47.2567]
[1717383748389,6.5461,164.0,163.95,47.2567]
[1717383748859,13.0887,164.0,163.95,47.2567]
[1717383751175,4.29,163.98,163.95,45.0]
[1717383751485,6.5463,163.98,163.95,45.0]
[1717383751685,6.5463,163.98,163.94,45.0]
[1717383751875,4.29,163.97,163.94,45.0]
[1717383752389,10.4325,163.98,163.94,47.2569]
[1717383752593,4.46,163.97,163.94,45.0]
[1717383753463,4.29,163.96,163.93,9.97196624]
[1717383753663,4.29,163.96,163.93,0.8175238]
[1717383753878,2.4265,163.97,163.93,0.8175238]
[1717383753879,0.17,163.97,163.93,54.97196624]
[1717383754083,4.63,163.98,163.93,57.22886624]
[1717383754287,10.863,163.98,163.93,48.0744238]
[1717383754699,10.863,163.98,163.93,57.22952409]
[1717383754997,6.8864,163.98,163.93,57.22952409]
[1717383755163,12.7795,163.97,163.93,45.8175238]
[1717383755367,4.46,163.96,163.93,0.8175238]
[1717383756078,6.4149,163.95,163.93,0.8175238]
[1717383756269,27.1581,163.94,163.93,0.8175238]
[1717383756665,13.3018,163.94,163.93,0.8175238]
[1717383757091,11.0449,163.94,163.93,0.8175238]
[1717383757301,13.3018,163.94,163.93,0.8175238]
[1717383759894,29.4713,163.94,163.93,0.8175238]
[1717383761200,6.7549,163.94,163.93,0.8175238]
[1717383761371,0.17,163.94,163.93,0.8175238]
[1717383761699,10.4729,163.94,163.93,0.8175238]
[1717383761882,10.6429,163.94,163.93,0.8175238]
[1717383762301,12.8998,163.94,163.93,0.8175238]
[1717383762889,10.6429,163.94,163.93,0.8175238]
[1717383763176,12.8998,163.94,163.93,0.8175238]
[1717383763804,10.6429,163.94,163.93,0.8175238]
[1717383763978,6.3529,163.94,163.93,0.8175238]
[1717383764297,0.34,163.94,163.93,0.8175238]
[1717383764498,4.63,163.94,163.93,0.8175238]
[1717383765077,6.8869,163.94,163.93,0.8175238]
[1717383766771,4.63,163.94,163.93,0.8175238]
[1717383766997,0.34,163.94,163.93,0.8175238]
[1717383767197,4.63,163.94,163.93,0.8175238]
[1717383767410,13.1574,163.94,163.93,0.8175238]
[1717383767735,33.4751,163.94,163.93,0.8175238]
[1717383768595,37.7651,163.94,163.93,0.8175238]
[1717383768985,53.5634,163.94,163.93,0.8175238]
[1717383769790,2.2576,163.89,163.88,0.3310126]
[1717383770108,2.5976,163.89,163.88,0.3310126]
[1717383770314,0.34,163.89,163.88,0.3310126]
[1717383771600,29.6104,163.89,163.88,0.3310126]
[1717383771804,29.57990197,163.89,163.88,0.3310126]
[1717383772985,8.65900197,163.89,163.88,0.3310126]
[1717383773192,6.85710197,163.89,163.88,0.3310126]
[1717383773914,0.30950197,163.89,163.88,0.3310126]
[1717383774104,4.59950197,163.89,163.88,0.3310126]
[1717383775113,4.42950197,163.89,163.88,0.3310126]
[1717383776499,6.68710197,163.89,163.88,0.3310126]
[1717383777019,2.39710197,163.89,163.88,0.3310126]
[1717383777317,6.68710197,163.89,163.88,0.3310126]
[1717383778593,2.39710197,163.89,163.88,0.3310126]
[1717383778792,0.13950197,163.89,163.88,0.3310126]
[1717383778996,4.29,163.9,163.88,0.3310126]
[1717383779205,6.5474,163.9,163.88,0.3310126]
[1717383779412,6.5476,163.89,163.88,0.3310126]
[1717383779718,6.7176,163.89,163.88,0.3310126]
[1717383780694,0.17,163.89,163.88,0.3310126]
[1717383781103,6.7176,163.89,163.88,0.3310126]
[1717383781318,13.2443,163.89,163.88,0.3310126]
[1717383782323,6.8876,163.89,163.88,0.3310126]
[1717383782896,13.1277,163.89,163.88,0.3310126]
[1717383784702,32.8666,163.89,163.88,0.3310126]
[1717383785526,39.6394,163.89,163.88,0.3310126]
[1717383785855,48.6698,163.89,163.88,0.3310126]
[1717383786003,93.6698,163.89,163.88,0.3310126]
[1717383788447,93.6698,163.89,163.77,0.8175238]
[1717383788448,15.8083,163.84,163.77,0.8175238]
[1717383788721,2.2586,163.82,163.77,0.8175238]
[1717383788917,4.29,163.8,163.77,0.8175238]
[1717383789120,0.17,163.79,163.77,0.8175238]
[1717383789321,4.29,163.78,163.77,0.8175238]
[1717383789505,2.4291,163.79,163.77,0.8175238]
[1717383789506,4.46,163.79,163.77,0.8175238]
[1717383790023,42.5147,163.78,163.77,0.8175238]
[1717383790222,42.5147,163.78,163.63,6.34]
[1717383790223,2.26,163.72,163.63,15.5061203]
[1717383790416,2.4301,163.71,163.62,60.0]
[1717383790619,2.2602,163.7,163.64,2.261]
[1717383790839,2.6001,163.71,163.63,6.34]
[1717383791045,2.2599,163.73,163.67,4.29]
[1717383791218,4.29,163.71,163.65,2.2608]
[1717383791616,4.29,163.71,163.62,16.5312]
[1717383791617,0.17,163.72,163.68,4.29]
[1717383791821,4.29,163.74,163.68,4.29]
[1717383792022,4.46,163.73,163.67,6.5506]
[1717383792222,4.29,163.72,163.67,2.2606]
[1717383792438,0.17,163.71,163.67,2.2606]
[1717383792607,0.17,163.71,163.66,4.29]
[1717383792608,0.17,163.71,163.66,6.2665]
[1717383792808,4.29,163.7,163.64,4.29]
[1717383793049,6.5504,163.69,163.63,2.2611]
[1717383793368,4.29,163.69,163.64,2.261]
[1717383794236,4.29,163.68,163.62,8.5276]
[1717383794408,4.46,163.67,163.62,8.5276]
[1717383794610,4.46,163.67,163.6,0.8175238]
[1717383794611,4.29,163.66,163.6,0.8175238]
[1717383794842,6.721,163.65,163.6,0.8175238]
[1717383795015,6.7207,163.66,163.6,5.1075238]
[1717383795214,0.17,163.65,163.6,5.1075238]
[1717383795826,0.17,163.65,163.6,7.3690238]
[1717383796129,0.17,163.65,163.6,13.5826238]
[1717383796328,4.29,163.64,163.6,0.8175238]
[1717383796942,6.551,163.64,163.6,0.8175238]
[1717383797143,0.17,163.63,163.6,0.8175238]
[1717383798244,6.5514,163.61,163.6,0.8175238]
[1717383798425,6.7214,163.61,163.6,0.8175238]
[1717383798625,0.17,163.61,163.6,0.8175238]
[1717383798820,4.46,163.61,163.6,0.8175238]
[1717383799514,0.17,163.61,163.6,0.8175238]
[1717383799753,4.46,163.61,163.6,0.8175238]
[1717383799930,0.17,163.61,163.6,0.8175238]
[1717383800118,2.2611,163.64,163.6,0.8175238]
[1717383800321,4.5203,163.71,163.6,0.8175238]
[1717383800535,4.29,163.65,163.6,0.8175238]
[1717383800740,6.551,163.64,163.6,0.8175238]
[1717383801016,4.29,163.63,163.6,0.8175238]
[1717383801416,17.16,163.68,163.6,0.8175238]
[1717383801623,2.2609,163.65,163.6,0.8175238]
[1717383801816,0.17,163.67,163.6,0.8175238]
[1717383801817,2.6011,163.64,163.6,0.8175238]
[1717383802043,0.17,163.64,163.6,0.8175238]
[1717383802423,4.29,163.65,163.6,9.1864238]
[1717383802623,4.29,163.65,163.61,45.0]
[1717383803250,4.5203,163.71,163.61,45.0]
[1717383803251,2.2608,163.66,163.61,45.0]
[1717383803547,4.29,163.66,163.61,51.1367]
[1717383804557,6.5507,163.66,163.61,51.1367]
[1717383804761,0.17,163.65,163.6,7.0439238]
[1717383805053,4.5203,163.71,163.6,7.0439238]
[1717383805054,4.52,163.72,163.61,51.5514]
[1717383805250,6.5506,163.67,163.61,51.5514]
[1717383805442,4.29,163.66,163.62,2.2613]
[1717383806349,0.17,163.68,163.62,6.2264]
[1717383806557,4.29,163.66,163.62,6.2264]
[1717383807043,4.29,163.67,163.62,6.2264]
[1717383807224,4.29,163.67,163.63,45.0]
[1717383807644,4.29,163.67,163.63,47.2611]
[1717383808242,4.29,163.67,163.63,45.0]
[1717383809543,4.29,163.67,163.63,2.2611]
[1717383809744,4.29,163.67,163.64,2.261]
[1717383809941,4.29,163.67,163.63,2.2611]
[1717383810153,4.29,163.67,163.63,47.2611]
[1717383810351,0.17,163.68,163.63,47.2611]
[1717383810554,4.29,163.67,163.63,2.2611]
[1717383811559,4.29,163.67,163.62,47.2613]
[1717383811738,4.29,163.66,163.62,45.0]
[1717383812153,4.29,163.65,163.61,2.2614]
[1717383812461,4.29,163.66,163.62,2.2613]
[1717383812757,4.29,163.67,163.62,2.2613]
[1717383812960,4.29,163.64,163.61,2.2614]
[1717383813261,4.29,163.64,163.6,0.8175238]
[1717383813262,4.29,163.64,163.62,2.2613]
[1717383813557,4.29,163.64,163.61,2.2614]
[1717383813760,0.17,163.66,163.62,2.2613]
[1717383813953,4.29,163.65,163.62,2.2613]
[1717383814642,4.29,163.65,163.61,2.2614]
[1717383815664,4.29,163.65,163.62,2.2613]
[1717383816659,0.17,163.67,163.62,2.2613]
[1717383816859,4.29,163.65,163.62,2.2613]
[1717383817047,0.17,163.67,163.62,2.2613]
[1717383817246,4.29,163.65,163.62,2.2613]
[1717383817869,2.2603,163.69,163.63,2.2611]
[1717383818060,4.29,163.68,163.63,2.2611]
[1717383818372,4.29,163.68,163.64,2.261]
[1717383818672,4.29,163.68,163.64,47.261]
[1717383818856,4.29,163.68,163.64,2.261]
[1717383819951,4.46,163.69,163.64,2.261]
[1717383820145,4.29,163.67,163.63,47.2611]
[1717383820345,2.4303,163.69,163.63,2.2611]
[1717383820567,0.17,163.69,163.64,2.261]
[1717383820878,4.29,163.68,163.64,2.261]
[1717383821438,2.4303,163.69,163.64,2.261]
[1717383821638,4.29,163.68,163.64,2.261]
[1717383822244,2.4302,163.7,163.65,2.2609]
[1717383822245,6.5502,163.7,163.65,2.2609]
[1717383822975,2.2599,163.73,163.67,2.2606]
[1717383823145,4.29,163.71,163.66,47.2606]
[1717383824166,4.29,163.69,163.63,2.261]
[1717383824351,4.29,163.67,163.62,2.2613]
[1717383824671,6.5507,163.67,163.61,2.2614]
[1717383824973,6.5507,163.67,163.61,6.5514]
[1717383825267,6.5507,163.67,163.62,2.2613]
[1717383825679,6.5507,163.67,163.6,0.8175238]
[1717383825680,2.2608,163.66,163.6,3.0790238]
[1717383825880,4.29,163.64,163.61,2.2614]
[1717383826974,2.2609,163.65,163.6,3.0790238]
[1717383827181,4.29,163.63,163.6,3.0790238]
[1717383827887,4.29,163.65,163.61,2.2614]
[1717383828189,4.29,163.64,163.61,2.2614]
[1717383828422,4.29,163.64,163.6,48.0790238]
[1717383828686,4.29,163.64,163.6,3.0790238]
[1717383829074,4.29,163.62,163.6,0.8175238]
[1717383829382,4.29,163.64,163.6,0.8175238]
[1717383829560,4.29,163.63,163.6,0.8175238]
[1717383829769,4.29,163.62,163.6,0.8175238]
[1717383829976,6.5513,163.62,163.6,0.8175238]
[1717383830787,4.29,163.61,163.6,0.8175238]
[1717383831302,6.7214,163.61,163.6,0.8175238]
[1717383832299,12.7741,163.61,163.6,0.8175238]
[1717383832983,8.4841,163.61,163.6,0.8175238]
[1717383833193,28.0053,163.61,163.6,0.8175238]
[1717383833383,29.2732,163.61,163.58,0.03802037]
[1717383833570,29.2397,163.59,163.58,0.03802037]
[1717383833774,29.5797,163.59,163.58,0.03802037]
[1717383834099,34.1032,163.59,163.58,0.03802037]
[1717383834893,29.8132,163.59,163.58,0.03802037]
[1717383835121,34.1032,163.59,163.58,0.03802037]
[1717383835978,29.8132,163.59,163.58,0.03802037]
[1717383836178,34.1032,163.59,163.58,0.03802037]
[1717383837090,49.9354,163.59,163.58,0.03802037]
[1717383837626,38.8602,163.59,163.58,0.03802037]
[1717383837779,43.1502,163.59,163.58,0.03802037]
[1717383837979,34.1032,163.59,163.58,0.03802037]
[1717383839293,29.8132,163.59,163.58,0.03802037]
[1717383839500,34.1032,163.59,163.58,0.03802037]
[1717383840009,40.8884,163.59,163.58,0.03802037]
[1717383841188,49.9354,163.59,163.58,0.03802037]
[1717383842601,94.9354,163.59,163.58,0.03802037]
[1717383842816,22.2027,163.59,163.58,0.03802037]
[1717383843012,17.4457,163.59,163.58,0.03802037]
[1717383844201,33.6116,163.59,163.58,0.03802037]
[1717383844424,36.059636,163.59,163.58,0.03802037]
[1717383846697,15.943736,163.59,163.58,0.03802037]
[1717383847017,20.233736,163.59,163.58,0.03802037]
[1717383848443,8.999736,163.59,163.58,0.03802037]
[1717383848811,20.176836,163.59,163.58,0.03802037]
[1717383849221,22.672036,163.59,163.58,0.03802037]
[1717383849428,51.788836,163.59,163.58,0.03802037]
[1717383849821,51.788836,163.59,163.55,0.3310126]
[1717383849822,2.2621,163.56,163.55,0.3310126]
[1717383850033,24.6865,163.56,163.55,0.3310126]
[1717383850644,17.9,163.56,163.55,0.3310126]
[1717383851341,13.61,163.56,163.55,0.3310126]
[1717383851527,17.9,163.56,163.55,0.3310126]
[1717383851902,2.2621,163.56,163.55,0.3310126]
[1717383852334,6.5521,163.56,163.55,0.3310126]
[1717383853303,6.7221,163.56,163.55,0.3310126]
[1717383853502,6.8921,163.56,163.55,0.3310126]
[1717383854442,6.7221,163.56,163.55,0.3310126]
[1717383854648,4.46,163.56,163.55,0.3310126]
[1717383854947,6.8921,163.56,163.55,0.3310126]
[1717383856543,2.6021,163.56,163.55,0.3310126]
[1717383856716,6.8921,163.56,163.55,0.3310126]
[1717383861862,11.4164,163.56,163.55,0.3310126]
[1717383862021,24.3127,163.56,163.55,0.3310126]
[1717383862444,17.5262,163.56,163.55,0.3310126]
[1717383862842,4.5246,163.55,163.45,6.5639]
[1717383863052,4.29,163.5,163.45,8.8275]
[1717383863261,2.4331,163.49,163.45,6.5639]
[1717383863436,4.29,163.48,163.45,6.5639]
[1717383863834,2.2636,163.45,163.44,0.8175238]
[1717383864027,11.1836,163.45,163.44,0.8175238]
[1717383864226,2.6036,163.45,163.44,0.8175238]
[1717383864426,6.8936,163.45,163.44,0.8175238]
[1717383865126,22.4315,163.45,163.44,0.8175238]
[1717383865330,22.4315,163.45,163.33,4.29]
[1717383865331,6.4498,163.45,163.33,4.29]
[1717383865649,4.29,163.39,163.32,2.2653]
[1717383865977,0.34,163.38,163.33,6.2391]
[1717383866137,0.34,163.38,163.29,8.5049]
[1717383866461,0.34,163.38,163.29,6.2391]
[1717383866835,0.34,163.39,163.29,6.2391]
[1717383867556,0.34,163.39,163.32,2.2654]
[1717383867938,2.2641,163.43,163.29,66.2391]
[1717383868143,2.4341,163.42,163.34,2.2652]
[1717383868360,15.2239,163.44,163.35,2.265]
[1717383868544,2.2639,163.44,163.36,2.2649]
[1717383868941,2.2639,163.43,163.35,2.265]
[1717383869568,12.96,163.44,163.33,2.2652]
[1717383869863,2.2645,163.4,163.29,6.2391]
[1717383870045,0.34,163.39,163.29,6.2391]
[1717383870236,2.6045,163.39,163.31,2.2656]
[1717383870437,2.2646,163.38,163.29,8.5048]
[1717383870664,0.34,163.37,163.29,6.2391]
[1717383870844,0.17,163.37,163.29,6.2391]
[1717383871252,0.17,163.38,163.31,2.2656]
[1717383871775,2.4346,163.38,163.31,2.2656]
[1717383872065,0.17,163.37,163.31,2.2656]
[1717383872650,0.34,163.38,163.31,2.2656]
[1717383874448,0.34,163.38,163.32,2.2654]
[1717383874747,2.2642,163.42,163.33,2.2653]
[1717383874946,15.2239,163.44,163.35,2.265]
[1717383875149,25.92,163.44,163.35,2.265]
[1717383875362,2.2641,163.42,163.3,4.5314]
[1717383875582,2.2641,163.42,163.34,2.2651]
[1717383875989,2.2641,163.42,163.33,2.2652]
[1717383876351,2.2642,163.41,163.33,2.2652]
[1717383876549,2.2642,163.41,163.34,2.2652]
[1717383877049,2.2644,163.4,163.32,2.2653]
[1717383877366,2.2645,163.39,163.31,2.2656]
[1717383877555,2.2646,163.38,163.31,2.2656]
[1717383877755,0.17,163.39,163.32,2.2654]
[1717383877956,0.34,163.39,163.32,2.2654]
[1717383878260,0.34,163.39,163.33,2.2653]
[1717383879084,0.34,163.39,163.32,2.2654]
[1717383879457,2.6045,163.39,163.32,2.2654]
[1717383879679,2.266,163.28,163.27,0.8175238]
[1717383879915,2.2658,163.3,163.27,0.8175238]
[1717383880115,0.34,163.34,163.27,0.8175238]
[1717383880281,2.266,163.28,163.27,0.8175238]
[1717383880607,2.606,163.28,163.27,0.8175238]
[1717383880988,0.34,163.28,163.27,0.8175238]
[1717383881196,2.436,163.28,163.27,0.8175238]
[1717383881400,2.606,163.28,163.27,0.8175238]
[1717383882188,25.2366,163.28,163.27,0.8175238]
[1717383882513,90.6308,163.28,163.27,0.4575238]
[1717383882674,45.6308,163.28,163.27,0.4575238]
[1717383884391,36.5667,163.28,163.27,0.4575238]
[1717383886288,36.5667,163.28,163.27,0.2775238]
[1717383887998,29.7686,163.28,163.27,0.2775238]
[1717383889791,13.329,163.28,163.27,0.2775238]
[1717383890594,15.781785,163.28,163.27,0.2775238]
[1717383891287,15.951785,163.28,163.27,0.2775238]
[1717383894331,9.590785,163.28,163.27,0.2775238]
[1717383894622,2.266,163.28,163.27,0.2775238]
[1717383895999,6.596,163.28,163.27,0.2775238]
[1717383896226,2.266,163.28,163.27,0.2775238]
[1717383896401,6.596,163.28,163.27,0.2775238]
[1717383897028,6.5959,163.29,163.27,0.2775238]
[1717383897239,6.5957,163.3,163.27,0.2775238]
[1717383898596,4.33,163.3,163.27,0.2775238]
[1717383900136,2.2656,163.31,163.27,6.3578238]
[1717383900287,2.2653,163.33,163.27,6.3578238]
[1717383900686,2.2655,163.32,163.27,6.3578238]
[1717383900919,2.2655,163.32,163.28,6.0803]
[1717383901118,2.2653,163.33,163.28,6.0803]
[1717383901306,4.5298,163.37,163.28,6.0803]
[1717383901307,2.2652,163.34,163.28,6.0803]
[1717383902316,2.2652,163.34,163.28,8.3463]
[1717383902499,4.5298,163.37,163.27,6.8465238]
[1717383902500,2.2654,163.33,163.27,6.8465238]
[1717383902713,2.2659,163.29,163.27,0.2775238]
[1717383903015,0.17,163.32,163.27,0.2775238]
[1717383903016,2.2657,163.31,163.27,0.2775238]
[1717383903396,2.4355,163.32,163.27,0.2775238]
[1717383903596,2.2655,163.32,163.27,0.2775238]
[1717383903799,2.2657,163.31,163.27,6.7287238]
[1717383904017,2.2654,163.33,163.27,6.7287238]
[1717383904316,19.7749,163.36,163.27,6.7287238]
[1717383904317,2.2652,163.34,163.27,8.9948238]
[1717383904995,2.2655,163.32,163.27,0.2775238]
[1717383905619,0.17,163.35,163.27,6.7287238]
[1717383905796,0.34,163.35,163.27,6.7287238]
[1717383905997,2.2653,163.33,163.27,8.9948238]
[1717383906211,2.2652,163.34,163.28,2.266]
[1717383906390,2.2653,163.33,163.27,8.9948238]
[1717383907010,5.18158139,163.39,163.29,2.2658]
[1717383907224,2.2649,163.36,163.29,2.2658]
[1717383907521,2.2651,163.35,163.29,2.2658]
[1717383907716,2.2651,163.35,163.28,47.266]
[1717383908404,5.18158139,163.39,163.28,45.0]
[1717383908405,2.2649,163.37,163.28,45.0]
[1717383908718,2.2649,163.37,163.3,2.2657]
[1717383908906,2.2649,163.36,163.3,2.2657]
[1717383909315,5.18158139,163.39,163.29,2.2658]
[1717383909316,2.265,163.35,163.29,2.2658]
[1717383910515,5.18158139,163.39,163.28,15.6316]
[1717383910516,2.2652,163.34,163.28,15.6316]
[1717383910713,2.2653,163.33,163.27,8.9947238]
[1717383912412,2.2652,163.34,163.27,8.9947238]
[1717383912725,2.2652,163.34,163.28,2.2659]
[1717383913297,2.2652,163.34,163.27,8.9948238]
[1717383913498,2.2653,163.33,163.27,8.9948238]
[1717383914436,2.2655,163.32,163.27,6.7287238]
[1717383914602,0.17,163.33,163.27,0.2775238]
[1717383914808,2.2655,163.32,163.27,0.2775238]
[1717383915729,2.6054,163.33,163.27,0.2775238]
[1717383916032,2.6054,163.33,163.27,2.5436238]
[1717383916332,0.34,163.33,163.27,0.2775238]
[1717383916533,2.2655,163.32,163.27,6.7999238]
[1717383917734,2.2653,163.33,163.27,9.0660238]
[1717383918922,0.17,163.34,163.27,9.0660238]
[1717383918923,2.2654,163.32,163.28,6.5224]
[1717383919409,2.2653,163.33,163.28,6.5224]
[1717383919731,2.2653,163.33,163.27,2.5436238]
[1717383919732,4.5298,163.36,163.27,6.8824238]
[1717383920030,0.34,163.35,163.27,6.8824238]
[1717383920740,2.2655,163.32,163.27,6.8824238]
[1717383921044,2.2655,163.32,163.28,6.6324]
[1717383921333,2.2654,163.33,163.28,6.6324]